bitfinex/quotes_SOLUSD_20240811
["timestamp","ask_amount","ask_price","bid_price","bid_amount"]
[1723387949931,4.6712,149.86,149.8,22.5433]
[1723387950132,20.0,149.87,149.8,22.5433]
[1723387950664,24.6707,149.87,149.8,22.5433]
[1723387950858,20.0,149.86,149.8,22.5433]
[1723387951063,20.0,149.88,149.8,22.5433]
[1723387951241,20.0,149.88,149.77,6.667]
[1723387951242,0.12549,149.86,149.77,6.667]
[1723387951563,4.6717,149.84,149.77,6.667]
[1723387951864,4.6713,149.85,149.77,6.667]
[1723387952041,1.66891343,149.84,149.77,6.667]
[1723387952249,4.6724,149.82,149.77,6.667]
[1723387952458,6.34177804,149.81,149.74,6.667]
[1723387952754,4.6735,149.78,149.72,6.1807]
[1723387952961,4.6735,149.78,149.71,29.83]
[1723387952962,4.6742,149.76,149.69,29.83]
[1723387953132,1.66978459,149.75,149.69,29.83]
[1723387953331,21.66978511,149.76,149.68,164.49560819]
[1723387953549,4.6748,149.74,149.68,164.49560819]
[1723387953734,20.0,149.75,149.68,164.49560819]
[1723387953955,15.0603,149.82,149.72,29.33]
[1723387954264,4.6735,149.78,149.72,29.33]
[1723387954440,1.66962638,149.77,149.7,29.83]
[1723387954635,4.6735,149.78,149.7,29.83]
[1723387954937,20.0,149.8,149.7,29.83]
[1723387955135,24.6731,149.8,149.72,29.83]
[1723387955350,4.6732,149.79,149.72,29.83]
[1723387955538,4.6732,149.79,149.68,194.32560819]
[1723387955539,1.66965088,149.79,149.68,194.32560819]
[1723387956070,29.83,149.78,149.68,194.32560819]
[1723387956373,4.6747,149.75,149.68,178.30800819]
[1723387956549,4.6748,149.74,149.68,142.29730819]
[1723387956735,4.6748,149.74,149.68,137.29730819]
[1723387957140,4.675,149.74,149.68,137.29730819]
[1723387957944,24.6745,149.75,149.68,137.29730819]
[1723387958265,4.6747,149.74,149.68,137.29730819]
[1723387958438,20.0,149.75,149.68,167.12730819]
[1723387958644,4.6735,149.78,149.7,29.83]
[1723387958851,6.3465,149.8,149.7,29.83]
[1723387959170,1.66980444,149.79,149.7,29.83]
[1723387959538,4.6727,149.81,149.72,29.83]
[1723387959734,4.6729,149.8,149.72,29.83]
[1723387959934,4.6726,149.81,149.74,29.83]
[1723387960379,4.6729,149.8,149.74,29.83]
[1723387960862,21.88195939,149.82,149.74,29.83]
[1723387961066,38.9046389,149.82,149.72,29.83]
[1723387961369,22.17497845,149.81,149.7,29.83]
[1723387961557,4.6738,149.77,149.7,29.83]
[1723387961754,4.6744,149.75,149.69,6.1807]
[1723387962142,20.12549,149.78,149.69,6.1807]
[1723387962367,26.96546286,149.77,149.72,29.83]
[1723387962547,6.96546286,149.77,149.72,29.83]
[1723387962748,20.0,149.76,149.72,29.83]
[1723387963146,20.0,149.76,149.7,29.83]
[1723387963363,6.96437012,149.79,149.72,29.83]
[1723387963566,20.0,149.78,149.72,29.83]
[1723387963763,11.49445939,149.81,149.74,29.83]
[1723387964069,11.63622182,149.81,149.74,29.83]
[1723387964271,4.6729,149.8,149.74,29.83]
[1723387964452,6.96342182,149.81,149.76,29.83]
[1723387964663,6.96342182,149.81,149.77,1.17931492]
[1723387964851,6.96342182,149.81,149.78,29.83]
[1723387965055,8.01847746,149.84,149.78,29.83]
[1723387965266,6.82165939,149.85,149.78,29.83]
[1723387965440,6.96154798,149.85,149.8,29.83]
[1723387965646,8.01847746,149.88,149.81,1.17845911]
[1723387965964,4.6707,149.87,149.81,1.17845911]
[1723387966139,4.671,149.86,149.8,29.83]
[1723387966339,31.49856407,149.88,149.77,6.1807]
[1723387966570,4.6719,149.84,149.77,36.0107]
[1723387966945,4.6714,149.85,149.77,36.0107]
[1723387967145,29.83,149.88,149.78,45.0]
[1723387967146,4.671,149.86,149.78,45.0]
[1723387968046,4.6713,149.85,149.78,45.0]
[1723387968361,4.671,149.86,149.78,45.0]
[1723387969367,4.6715,149.85,149.78,45.0]
[1723387969759,4.6715,149.85,149.77,36.0107]
[1723387969760,1.66862502,149.85,149.77,6.1807]
[1723387970253,4.6713,149.85,149.77,6.1807]
[1723387970475,62.63854408,149.88,149.78,1.17887977]
[1723387970775,62.63854408,149.88,149.78,31.00887977]
[1723387970944,4.6712,149.86,149.78,29.83]
[1723387971348,4.6707,149.87,149.78,31.00852215]
[1723387971555,4.6707,149.87,149.8,29.83]
[1723387971850,30.14410248,149.88,149.8,29.83]
[1723387972252,24.6704,149.88,149.8,29.83]
[1723387972874,6.96005348,149.89,149.83,15.9332]
[1723387973086,7.3348416,149.92,149.84,81.184]
[1723387973087,4.6692,149.92,149.84,81.184]
[1723387973251,4.6695,149.91,149.84,81.184]
[1723387973857,4.6695,149.91,149.84,51.354]
[1723387974063,1.66796937,149.91,149.84,6.354]
[1723387974375,6.95620982,149.92,149.84,6.354]
[1723387974551,6.95620982,149.92,149.85,29.83]
[1723387974752,11.76865429,149.93,149.84,6.354]
[1723387974964,4.6707,149.87,149.84,6.354]
[1723387975475,4.6704,149.88,149.84,6.354]
[1723387976276,24.6701,149.89,149.84,6.354]
[1723387976578,20.0,149.89,149.84,6.354]
[1723387976791,20.0,149.91,149.84,6.354]
[1723387976957,24.6697,149.91,149.84,6.354]
[1723387977464,24.6691,149.92,149.84,6.354]
[1723387977674,24.6691,149.92,149.85,45.0]
[1723387977675,19.6691,149.92,149.85,45.0]
[1723387977981,1.66792447,149.91,149.84,6.354]
[1723387978276,1.66812398,149.9,149.84,6.354]
[1723387978450,4.6701,149.89,149.84,6.354]
[1723387978651,6.33792398,149.9,149.84,6.354]
[1723387978849,1.66812398,149.9,149.84,6.354]
[1723387979150,29.83,149.88,149.81,6.354]
[1723387979351,37.98091737,149.88,149.81,6.354]
[1723387979681,8.15091737,149.88,149.81,6.354]
[1723387979883,4.6707,149.87,149.81,6.354]
[1723387980370,4.6711,149.86,149.81,6.354]
[1723387980579,37.98091737,149.88,149.81,6.354]
[1723387980580,4.6713,149.85,149.81,6.354]
[1723387980756,37.98091737,149.88,149.81,6.354]
[1723387980757,4.671,149.86,149.81,6.354]
[1723387980965,24.6707,149.87,149.81,6.354]
[1723387981169,4.671,149.86,149.81,6.354]
[1723387981375,24.6707,149.87,149.81,6.354]
[1723387982077,20.0,149.87,149.81,6.354]
[1723387982279,20.0,149.87,149.82,45.0]
[1723387982459,4.6704,149.88,149.81,6.354]
[1723387982776,20.0,149.88,149.82,45.0]
[1723387982980,4.6712,149.86,149.82,45.0]
[1723387983286,20.0,149.87,149.82,45.0]
[1723387983753,4.6707,149.87,149.81,6.354]
[1723387983956,24.6707,149.87,149.81,6.354]
[1723387984156,20.0,149.87,149.81,6.354]
[1723387984376,20.0,149.87,149.82,45.0]
[1723387984577,4.6712,149.86,149.81,6.354]
[1723387984884,4.6722,149.82,149.71,22.2872]
[1723387985083,29.83,149.82,149.71,52.1172]
[1723387985266,4.6735,149.78,149.71,22.2872]
[1723387985461,4.6732,149.79,149.71,22.2872]
[1723387985661,4.6723,149.82,149.71,53.29727961]
[1723387985874,4.6726,149.81,149.71,53.29727961]
[1723387986077,4.6726,149.81,149.71,52.1172]
[1723387986477,29.83,149.82,149.71,52.1172]
[1723387986686,20.0,149.83,149.73,29.83]
[1723387986990,29.83,149.86,149.75,29.83]
[1723387987162,4.6711,149.86,149.77,52.1172]
[1723387987480,4.6714,149.85,149.77,22.2872]
[1723387987683,4.6714,149.85,149.78,45.0]
[1723387988162,24.6714,149.85,149.78,46.17834871]
[1723387988493,4.6708,149.87,149.78,45.0]
[1723387988863,4.6708,149.87,149.78,46.1780382]
[1723387989285,4.6708,149.87,149.78,45.0]
[1723387989790,4.671,149.86,149.78,45.0]
[1723387990182,4.6713,149.85,149.78,45.0]
[1723387990493,1.66853196,149.85,149.77,22.2872]
[1723387990670,21.66853196,149.85,149.77,22.2872]
[1723387991069,20.0,149.85,149.77,22.2872]
[1723387991386,24.6715,149.85,149.77,22.2872]
[1723387991585,4.6717,149.84,149.77,22.2872]
[1723387991795,24.6717,149.84,149.78,45.0]
[1723387991968,20.0,149.84,149.78,45.0]
[1723387992288,4.672,149.83,149.78,45.0]
[1723387992496,29.83,149.84,149.77,22.2872]
[1723387992792,4.6731,149.8,149.77,6.354]
[1723387993091,6.34242006,149.79,149.73,22.7734]
[1723387993303,20.0,149.81,149.73,22.7734]
[1723387993304,1.66923223,149.78,149.73,22.7734]
[1723387993463,4.6738,149.77,149.73,22.7734]
[1723387993788,29.83,149.8,149.73,22.7734]
[1723387993993,21.66942839,149.79,149.73,22.7734]
[1723387994181,4.6735,149.78,149.73,22.7734]
[1723387994492,4.6735,149.78,149.73,16.0884]
[1723387994986,24.6732,149.79,149.73,16.0884]
[1723387995187,4.6743,149.76,149.73,6.4422]
[1723387995396,31.49968684,149.76,149.69,6.4422]
[1723387995692,24.6745,149.75,149.69,6.4422]
[1723387996076,20.0,149.75,149.69,6.4422]
[1723387996273,4.6748,149.74,149.69,6.4422]
[1723387996477,34.5048,149.74,149.69,6.4422]
[1723387996787,24.6751,149.73,149.68,137.29730819]
[1723387998401,29.83,149.7,149.68,137.29730819]
[1723387998570,34.5062,149.7,149.68,126.10519804]
[1723387998888,20.0,149.69,149.68,126.10519804]
[1723387999097,24.80179,149.69,149.68,126.10519804]
[1723387999407,25.17826,149.69,149.68,126.10519804]
[1723387999690,25.17826,149.69,149.68,120.04906311]
[1723387999896,4.6772,149.66,149.65,8.02100108]
[1723388000078,34.5072,149.66,149.65,8.02100108]
[1723388000275,54.5072,149.66,149.65,8.02100108]
[1723388001191,55.00916,149.66,149.65,0.99984067]
[1723388001377,100.00916,149.66,149.65,0.99984067]
[1723388001577,4.6791,149.6,149.52,52.6034]
[1723388001797,0.12549,149.59,149.46,6.4422]
[1723388002098,0.12549,149.59,149.47,29.83]
[1723388002099,29.83,149.58,149.47,29.83]
[1723388002299,29.83,149.56,149.46,6.4422]
[1723388002471,20.0,149.55,149.46,6.4422]
[1723388003099,6.95347695,149.58,149.5,29.83]
[1723388003395,0.12549,149.55,149.46,6.4422]
[1723388003604,4.6813,149.53,149.46,6.4422]
[1723388004195,0.12549,149.54,149.46,6.4422]
[1723388004378,31.62799389,149.54,149.46,6.4422]
[1723388004695,4.6816,149.52,149.46,4.6832]
[1723388004904,1.67255689,149.51,149.46,4.6832]
[1723388005087,4.6819,149.52,149.43,30.6546587]
[1723388005293,6.3543904,149.52,149.43,30.6546587]
[1723388005492,20.0,149.53,149.47,4.6829]
[1723388005786,4.682,149.51,149.46,4.6835]
[1723388005997,30.08098,149.5,149.43,0.8246587]
[1723388006292,20.0,149.49,149.45,4.6837]
[1723388006495,20.0,149.49,149.46,4.6834]
[1723388007006,24.6822,149.51,149.45,4.6837]
[1723388007305,0.12549,149.49,149.43,0.8246587]
[1723388007474,26.4810019,149.49,149.43,0.8246587]
[1723388007677,21.7984019,149.49,149.43,5.5087587]
[1723388007909,26.4810019,149.49,149.44,4.684]
[1723388008193,4.6832,149.47,149.43,0.8246587]
[1723388008366,20.0,149.49,149.43,0.8246587]
[1723388008575,10.72737672,149.53,149.43,0.8246587]
[1723388008576,9.05424582,149.53,149.43,30.6546587]
[1723388008793,20.0,149.52,149.43,30.6546587]
[1723388008972,29.83,149.5,149.43,0.8246587]
[1723388009177,4.6829,149.48,149.43,5.5090587]
[1723388009393,1.67304675,149.48,149.43,0.8246587]
[1723388009706,20.0,149.49,149.46,4.6834]
[1723388009884,1.67270802,149.5,149.46,4.6834]
[1723388010198,1.67268227,149.49,149.45,4.6838]
[1723388010378,34.5131,149.48,149.43,5.5090587]
[1723388010571,20.0,149.47,149.44,4.6841]
[1723388010771,31.50305243,149.48,149.43,0.8246587]
[1723388011171,20.0,149.47,149.43,0.8246587]
[1723388011502,20.0,149.49,149.43,0.8246587]
[1723388011674,1.67294966,149.49,149.43,0.8246587]
[1723388011871,1.67283838,149.48,149.43,0.8246587]
[1723388012074,1.67283838,149.48,149.43,5.5090587]
[1723388012316,24.6825,149.5,149.44,4.6839]
[1723388012520,8.62060597,149.49,149.45,4.6838]
[1723388012683,8.62060597,149.49,149.43,0.8246587]
[1723388013011,4.6816,149.52,149.47,4.683]
[1723388013218,4.6819,149.51,149.47,4.683]
[1723388013419,41.46134959,149.53,149.45,6.6165]
[1723388013588,41.46134959,149.53,149.47,4.683]
[1723388013589,6.3541255,149.52,149.47,4.683]
[1723388014191,4.6817,149.52,149.47,4.683]
[1723388014711,4.6819,149.51,149.47,4.683]
[1723388014890,1.67251856,149.5,149.47,4.6831]
[1723388015093,4.6822,149.5,149.45,11.3001]
[1723388015314,1.67282463,149.49,149.43,0.8246587]
[1723388015518,6.35562463,149.49,149.43,0.8246587]
[1723388015815,15.24165486,149.5,149.43,0.8246587]
[1723388016035,4.6826,149.49,149.45,4.6838]
[1723388016202,1.67277831,149.48,149.44,4.684]
[1723388016401,6.35567831,149.48,149.43,5.5090587]
[1723388017123,24.6826,149.49,149.44,4.6841]
[1723388017415,20.0,149.49,149.43,0.8246587]
[1723388017726,20.0,149.52,149.43,0.8246587]
[1723388017917,20.0,149.52,149.48,4.6828]
[1723388018087,1.672724,149.51,149.43,0.8246587]
[1723388018415,4.6831,149.48,149.43,5.5090587]
[1723388018620,4.6832,149.47,149.43,0.8246587]
[1723388019417,20.0,149.48,149.43,0.8246587]
[1723388019620,4.6836,149.46,149.43,0.8246587]
[1723388019819,21.67311765,149.5,149.43,0.8246587]
[1723388019820,4.6832,149.47,149.43,0.8246587]
[1723388020226,4.6837,149.46,149.43,0.8246587]
[1723388020427,24.6832,149.47,149.43,0.8246587]
[1723388020632,20.0,149.49,149.43,5.5090587]
[1723388020923,4.6832,149.47,149.43,0.8246587]
[1723388021097,24.6832,149.47,149.43,0.8246587]
[1723388021303,20.0,149.49,149.43,0.8246587]
[1723388021516,4.6832,149.47,149.43,0.8246587]
[1723388021826,4.6841,149.44,149.43,0.8246587]
[1723388022020,29.83,149.47,149.4,148.03957124]
[1723388022021,29.83,149.45,149.4,148.03957124]
[1723388022221,4.685,149.41,149.4,148.03957124]
[1723388022400,34.515,149.41,149.4,138.24153684]
[1723388022723,20.0,149.41,149.4,138.24153684]
[1723388023233,20.12549,149.41,149.4,138.24153684]
[1723388023398,61.96964722,149.41,149.4,138.24153684]
[1723388023934,79.91031805,149.41,149.4,116.52890171]
[1723388024242,124.91031805,149.41,149.4,116.52890171]
[1723388024530,79.91031805,149.41,149.4,108.38390171]
[1723388025032,109.91031805,149.41,149.4,104.11590171]
[1723388025711,109.91031805,149.41,149.4,99.01590171]
[1723388026117,79.91031805,149.41,149.4,99.01590171]
[1723388026808,79.91031805,149.41,149.4,75.97205816]
[1723388027013,79.91031805,149.41,149.4,15.06205816]
[1723388027217,109.91031805,149.41,149.4,15.06205816]
[1723388027530,11.7142,149.4,149.29,6.6165]
[1723388027734,29.83,149.36,149.29,6.6165]
[1723388028026,20.0,149.35,149.29,6.6165]
[1723388028213,20.0,149.35,149.29,6.1165]
[1723388028409,1.15240817,149.34,149.29,6.1165]
[1723388028623,4.6874,149.34,149.29,6.1165]
[1723388028818,20.0,149.37,149.3,29.83]
[1723388029023,20.0,149.37,149.33,4.6873]
[1723388029329,20.0,149.37,149.21,1.33932037]
[1723388029330,4.6873,149.33,149.15,29.83]
[1723388029509,27.63763606,149.32,149.17,29.83]
[1723388029830,27.63763606,149.32,149.22,16.2914]
[1723388029831,14.97337874,149.32,149.22,16.2914]
[1723388030014,30.0,149.34,149.25,29.83]
[1723388030402,5.83880817,149.37,149.25,29.83]
[1723388030727,4.6866,149.36,149.26,40.0]
[1723388030929,11.33693509,149.37,149.25,29.83]
[1723388031104,5.83960817,149.35,149.22,16.2914]
[1723388031311,4.6876,149.33,149.23,6.6165]
[1723388031510,1.15240817,149.32,149.23,6.6165]
[1723388031825,1.15240817,149.32,149.23,36.4465]
[1723388032329,4.6876,149.33,149.23,36.4465]
[1723388032533,1.15240817,149.32,149.23,6.6165]
[1723388032704,1.15240817,149.32,149.24,29.83]
[1723388033103,1.15240817,149.31,149.23,6.6165]
[1723388033330,1.15240817,149.33,149.25,29.83]
[1723388033512,1.15240817,149.32,149.25,29.83]
[1723388034337,21.09092012,149.34,149.23,6.6165]
[1723388034537,8.1103861,149.34,149.27,29.83]
[1723388034704,1.15240817,149.33,149.29,29.83]
[1723388034906,17.63677876,149.38,149.29,29.83]
[1723388035116,8.10802796,149.37,149.31,29.83]
[1723388035319,17.63677876,149.38,149.31,29.83]
[1723388035724,6.95462193,149.4,149.35,29.83]
[1723388035954,4.6841,149.44,149.35,29.83]
[1723388036106,8.10453912,149.44,149.37,29.83]
[1723388036938,29.83,149.41,149.22,6.0193]
[1723388037112,4.686,149.38,149.28,29.83]
[1723388037311,1.15240817,149.38,149.3,29.83]
[1723388037530,1.15240817,149.38,149.22,6.0193]
[1723388037531,9.20528182,149.4,149.32,29.83]
[1723388037709,1.15240817,149.41,149.32,29.83]
[1723388037910,1.15240817,149.41,149.36,29.83]
[1723388038117,4.6847,149.43,149.36,29.83]
[1723388038319,1.15240817,149.42,149.34,29.83]
[1723388039315,21.15240817,149.42,149.34,29.83]
[1723388039838,9.20528182,149.47,149.36,29.83]
[1723388040135,5.83590817,149.46,149.36,29.83]
[1723388040337,21.99332895,149.46,149.36,29.83]
[1723388040643,17.30982895,149.46,149.38,29.83]
[1723388040831,17.30982895,149.46,149.4,29.83]
[1723388041133,10.35768999,149.46,149.4,29.83]
[1723388041347,5.83590817,149.46,149.4,29.83]
[1723388041516,1.15240817,149.46,149.4,29.83]
[1723388042037,6.95119424,149.48,149.36,29.83]
[1723388042038,6.95119424,149.48,149.42,29.83]
[1723388042436,1.15240817,149.47,149.4,29.83]
[1723388042617,6.95119424,149.48,149.42,29.83]
[1723388042814,7.68023022,149.52,149.36,29.83]
[1723388043021,6.95130488,149.48,149.4,29.83]
[1723388043316,1.15240817,149.48,149.42,29.83]
[1723388043625,7.68023022,149.52,149.46,29.83]
[1723388043825,1.15240817,149.51,149.46,29.83]
[1723388044652,6.94986328,149.53,149.46,29.83]
[1723388044820,13.88598182,149.55,149.46,29.83]
[1723388045218,9.20528182,149.55,149.48,29.83]
[1723388045632,6.94827237,149.56,149.48,29.83]
[1723388045833,6.94827237,149.56,149.5,29.83]
[1723388046081,7.68023022,149.57,149.5,29.83]
[1723388046517,16.15218581,149.59,149.5,29.83]
[1723388047016,8.09931216,149.59,149.52,29.83]
[1723388047217,12.35903022,149.62,149.52,29.83]
[1723388047422,1.15240817,149.61,149.52,29.83]
[1723388047627,5.83130817,149.61,149.52,29.83]
[1723388047842,14.626216,149.62,149.54,29.83]
[1723388048017,45.60862417,149.62,149.52,29.83]
[1723388048227,15.77862417,149.62,149.54,29.83]
[1723388048433,6.94598578,149.62,149.54,29.83]
[1723388048745,5.83090817,149.62,149.54,29.83]
[1723388049342,4.6791,149.6,149.51,22.0657]
[1723388049525,1.15240817,149.59,149.51,22.0657]
[1723388049727,4.6797,149.58,149.51,22.0657]
[1723388049935,1.15240817,149.57,149.51,22.0657]
[1723388050257,20.0,149.59,149.52,29.83]
[1723388050447,29.20528182,149.61,149.54,29.83]
[1723388050758,4.6785,149.62,149.54,29.83]
[1723388051064,1.15240817,149.62,149.52,29.83]
[1723388051350,4.6791,149.6,149.52,29.83]
[1723388051551,1.15240817,149.59,149.52,29.83]
[1723388051918,1.15240817,149.61,149.52,29.83]
[1723388052139,0.12549,149.59,149.47,6.3749]
[1723388052324,29.83,149.56,149.47,6.3749]
[1723388052539,29.83,149.52,149.43,6.3749]
[1723388052859,4.6823,149.5,149.43,6.3749]
[1723388053031,1.15240817,149.49,149.43,6.3749]
[1723388053229,4.6838,149.45,149.4,15.7593]
[1723388053425,1.15240817,149.44,149.38,6.3749]
[1723388053635,40.56415999,149.5,149.38,6.3749]
[1723388053951,29.83,149.5,149.39,29.83]
[1723388054134,20.0,149.49,149.39,29.83]
[1723388054727,20.0,149.49,149.41,29.83]
[1723388054943,20.0,149.5,149.41,29.83]
[1723388055747,4.6828,149.49,149.41,29.83]
[1723388057249,20.0,149.5,149.41,29.83]
[1723388057465,1.15240817,149.51,149.43,29.83]
[1723388057669,4.6819,149.51,149.43,29.83]
[1723388057955,4.6822,149.5,149.41,29.83]
[1723388058151,4.682,149.51,149.41,29.83]
[1723388058935,5.83440817,149.51,149.41,29.83]
[1723388059162,1.15240817,149.51,149.41,29.83]
[1723388059370,21.15240817,149.51,149.41,29.83]
[1723388059542,29.83,149.5,149.39,29.83]
[1723388059739,1.15240817,149.49,149.39,29.83]
[1723388059938,1.15240817,149.48,149.39,29.83]
[1723388060256,4.6832,149.47,149.39,29.83]
[1723388060464,4.6829,149.48,149.39,29.83]
[1723388060653,5.83530817,149.48,149.39,29.83]
[1723388060843,4.6832,149.47,149.39,29.83]
[1723388061047,1.15240817,149.46,149.38,6.3749]
[1723388061240,1.15240817,149.45,149.38,6.3749]
[1723388061859,4.6841,149.44,149.38,6.3749]
[1723388062061,4.6851,149.41,149.34,22.1342]
[1723388062260,29.83,149.46,149.34,22.1342]
[1723388062261,5.83780817,149.4,149.34,22.1342]
[1723388062454,4.6851,149.41,149.31,29.83]
[1723388062874,5.83750817,149.41,149.31,29.83]
[1723388063177,1.15240817,149.41,149.31,29.83]
[1723388063377,0.12549,149.4,149.31,29.83]
[1723388063879,4.6854,149.4,149.31,29.83]
[1723388064775,20.0,149.41,149.33,29.83]
[1723388064985,4.6848,149.42,149.33,29.83]
[1723388066093,20.0,149.43,149.37,29.83]
[1723388066094,1.15240817,149.43,149.37,29.83]
[1723388066391,4.6829,149.48,149.41,29.83]
[1723388066558,1.15240817,149.48,149.41,29.83]
[1723388066759,13.88718182,149.51,149.41,29.83]
[1723388066963,1.15240817,149.5,149.41,29.83]
[1723388067181,1.15240817,149.5,149.43,29.83]
[1723388067385,1.15240817,149.5,149.39,22.1342]
[1723388067588,4.6834,149.47,149.39,22.1342]
[1723388067760,5.83580817,149.47,149.39,22.1342]
[1723388068182,1.15240817,149.47,149.39,22.1342]
[1723388068387,1.15240817,149.49,149.4,29.83]
[1723388068687,4.6831,149.48,149.4,29.83]
[1723388069074,50.98240817,149.48,149.39,6.3749]
[1723388069385,50.98240817,149.48,149.34,15.171]
[1723388069386,4.6847,149.42,149.36,29.83]
[1723388069563,1.15240817,149.41,149.35,6.6304]
[1723388069757,1.15240817,149.44,149.35,6.6304]
[1723388070262,20.0,149.45,149.36,29.83]
[1723388070673,1.15240817,149.44,149.36,29.83]
[1723388070874,4.6852,149.41,149.35,6.6304]
[1723388071164,1.15240817,149.44,149.35,6.6304]
[1723388071468,20.0,149.45,149.35,6.6304]
[1723388071983,4.6841,149.44,149.35,6.6304]
[1723388072188,1.15240817,149.43,149.36,29.83]
[1723388072387,20.0,149.45,149.38,29.83]
[1723388072597,1.15240817,149.44,149.36,29.83]
[1723388072777,20.83671587,149.47,149.38,29.83]
[1723388072968,4.6839,149.45,149.35,6.6304]
[1723388073171,16.15351587,149.47,149.37,29.83]
[1723388073497,20.83671587,149.47,149.37,29.83]
[1723388073791,16.15351587,149.47,149.39,29.83]
[1723388074293,20.0,149.46,149.39,29.83]
[1723388074478,6.94823405,149.47,149.39,29.83]
[1723388074681,8.10064222,149.47,149.39,29.83]
[1723388074874,12.78404222,149.47,149.39,29.83]
[1723388075197,6.94823405,149.47,149.39,29.83]
[1723388076215,4.6835,149.46,149.37,29.83]
[1723388076411,5.83630817,149.45,149.37,29.83]
[1723388076969,1.15240817,149.45,149.35,36.4604]
[1723388077194,21.15240817,149.45,149.35,36.4604]
[1723388077381,4.6853,149.41,149.35,6.6304]
[1723388077588,4.6855,149.4,149.34,15.171]
[1723388077990,4.686,149.38,149.31,6.6304]
[1723388078186,29.83,149.4,149.31,6.6304]
[1723388078373,30.98240817,149.42,149.31,6.6304]
[1723388078702,4.6854,149.4,149.31,36.4604]
[1723388078907,29.83,149.38,149.29,15.171]
[1723388079195,24.6863,149.37,149.29,15.171]
[1723388079588,20.0,149.37,149.29,15.171]
[1723388079980,4.686,149.38,149.29,45.001]
[1723388080187,4.6863,149.37,149.29,45.001]
[1723388080376,4.6866,149.36,149.29,15.171]
[1723388080773,5.83880817,149.37,149.29,15.171]
[1723388080978,4.6866,149.36,149.29,15.171]
[1723388081398,1.15240817,149.35,149.27,36.4604]
[1723388081583,1.15240817,149.35,149.27,6.6304]
[1723388081784,29.83,149.33,149.21,29.83]
[1723388081986,22.5259,149.34,149.25,29.83]
[1723388081987,9.20528182,149.34,149.25,29.83]
[1723388082187,20.0,149.33,149.25,29.83]
[1723388082500,20.0,149.33,149.26,1.33967616]
[1723388082691,24.6867,149.36,149.27,31.1695743]
[1723388083098,4.6871,149.35,149.27,31.1695743]
[1723388083398,15.34068182,149.38,149.29,29.83]
[1723388083802,4.687,149.35,149.27,29.83]
[1723388083977,1.15240817,149.34,149.27,29.83]
[1723388084281,4.6866,149.36,149.29,29.83]
[1723388084488,5.83940817,149.35,149.29,29.83]
[1723388084890,4.6867,149.36,149.29,29.83]
[1723388085097,4.6859,149.39,149.31,29.83]
[1723388085291,4.6854,149.4,149.33,29.83]
[1723388085683,52.96031985,149.43,149.33,29.83]
[1723388085684,4.6857,149.39,149.33,29.83]
[1723388085884,1.15240817,149.38,149.31,29.83]
[1723388086082,4.6864,149.37,149.31,29.83]
[1723388086286,11.7125,149.42,149.31,29.83]
[1723388086498,20.91778182,149.42,149.31,29.83]
[1723388086704,4.6859,149.39,149.31,29.83]
[1723388087001,4.686,149.38,149.31,29.83]
[1723388087708,4.6864,149.37,149.31,29.83]
[1723388088002,4.6866,149.36,149.29,29.83]
[1723388088178,1.15240817,149.35,149.29,29.83]
[1723388088583,4.6861,149.38,149.31,29.83]
[1723388089600,4.6864,149.37,149.29,29.83]